[Event "Titled Tuesday Blitz August 08 Late 2023"]
[White "Ibarra Jerez, Jose Carlos"]
[Black "ArtemDyachuk"]
[WhiteFideId "2226332"]
[WhiteElo "2848"]
[BlackElo "2535"]
[Result "1-0"]
[Round "6"]
[TimeControl "180+1"]
[Date "2023.08.08"]
[WhiteClock "0:00:04"]
[BlackClock "0:00:00"]
[Board "42"]

1. e4 {[%clk 0:03:00]}  c6 {[%clk 0:02:58]} 2. Nf3 {[%clk 0:03:00]}  d5 {[%clk 0:02:57]} 3. d3 {[%clk 0:03:01]}  Qc7 {[%clk 0:02:55]} 4. exd5 {[%clk 0:03:00]}  cxd5 {[%clk 0:02:55]} 5. c4 {[%clk 0:03:01]}  dxc4 {[%clk 0:02:47]} 6. dxc4 {[%clk 0:03:02]}  Nc6 {[%clk 0:02:47]} 7. Nc3 {[%clk 0:03:01]}  Bf5 {[%clk 0:02:44]} 8. Nd5 {[%clk 0:02:59]}  Qd8 {[%clk 0:02:41]} 9. Bf4 {[%clk 0:02:57]}  Rc8 {[%clk 0:02:40]} 10. Qa4 {[%clk 0:02:41]}  e6 {[%clk 0:02:37]} 11. Nc3 {[%clk 0:02:39]}  a6 {[%clk 0:01:51]} 12. Be2 {[%clk 0:02:32]}  Qb6 {[%clk 0:01:50]} 13. O-O-O {[%clk 0:01:46]}  Bc5 {[%clk 0:01:28]} 14. Nh4 {[%clk 0:01:33]}  Bg6 {[%clk 0:01:20]} 15. Nxg6 {[%clk 0:01:33]}  hxg6 {[%clk 0:01:21]} 16. Ne4 {[%clk 0:01:31]}  Nf6 {[%clk 0:01:09]} 17. Nd6+ {[%clk 0:01:23]}  Bxd6 {[%clk 0:01:06]} 18. Bxd6 {[%clk 0:01:23]}  Qxf2 {[%clk 0:00:57]} 19. Bf3 {[%clk 0:01:21]}  Ne4 {[%clk 0:00:37]} 20. Qa3 {[%clk 0:00:27]}  Ng5 {[%clk 0:00:18]} 21. Rhf1 {[%clk 0:00:17]}  Qh4 {[%clk 0:00:18]} 22. Be2 {[%clk 0:00:11]}  Ne4 {[%clk 0:00:14]} 23. Bf4 {[%clk 0:00:07]}  Qe7 {[%clk 0:00:13]} 24. Qe3 {[%clk 0:00:05]}  f5 {[%clk 0:00:07]} 25. Bf3 {[%clk 0:00:06]}  Qc5 {[%clk 0:00:07]} 26. Qxc5 {[%clk 0:00:03]}  Nxc5 {[%clk 0:00:08]} 27. Rfe1 {[%clk 0:00:02]}  Nb4 {[%clk 0:00:07]} 28. a3 {[%clk 0:00:02]}  Nbd3+ {[%clk 0:00:08]} 29. Kc2 {[%clk 0:00:01]}  Nxf4 {[%clk 0:00:07]} 30. Rf1 {[%clk 0:00:01]}  Nh5 {[%clk 0:00:06]} 31. b4 {[%clk 0:00:02]}  Ne4 {[%clk 0:00:06]} 32. Kb3 {[%clk 0:00:01]}  Ke7 {[%clk 0:00:05]} 33. Rde1 {[%clk 0:00:01]}  Nhf6 {[%clk 0:00:05]} 34. Re2 {[%clk 0:00:01]}  Rhd8 {[%clk 0:00:04]} 35. Rc1 {[%clk 0:00:02]}  Rd3+ {[%clk 0:00:04]} 36. Kb2 {[%clk 0:00:02]}  Rd2+ {[%clk 0:00:03]} 37. Rxd2 {[%clk 0:00:02]}  Nxd2 {[%clk 0:00:04]} 38. Bxb7 {[%clk 0:00:03]}  Rxc4 {[%clk 0:00:03]} 39. Rd1 {[%clk 0:00:03]}  Nde4 {[%clk 0:00:02]} 40. Bxa6 {[%clk 0:00:04]}  Rc7 {[%clk 0:00:02]} 41. b5 {[%clk 0:00:03]}  Nd5 {[%clk 0:00:02]} 42. a4 {[%clk 0:00:03]}  Nec3 {[%clk 0:00:02]} 43. Ra1 {[%clk 0:00:03]}  Ra7 {[%clk 0:00:01]} 44. Kb3 {[%clk 0:00:03]}  Ne4 {[%clk 0:00:01]} 45. a5 {[%clk 0:00:03]}  Kd6 {[%clk 0:00:02]} 46. Kc4 {[%clk 0:00:02]}  Nc5 {[%clk 0:00:02]} 47. b6 {[%clk 0:00:01]}  Rxa6 {[%clk 0:00:02]} 48. Kb5 {[%clk 0:00:02]}  Ra8 {[%clk 0:00:02]} 49. Rc1 {[%clk 0:00:03]}  Rb8 {[%clk 0:00:02]} 50. Rxc5 {[%clk 0:00:03]}  e5 {[%clk 0:00:02]} 51. Rc6+ {[%clk 0:00:03]}  Kd7 {[%clk 0:00:02]} 52. a6 {[%clk 0:00:03]}  e4 {[%clk 0:00:02]} 53. a7 {[%clk 0:00:03]}  Ra8 {[%clk 0:00:00]} 54. b7 {[%clk 0:00:04]} 1-0


[Site "https://www.chess.com"]

[Event "Titled Tuesday Blitz August 08 Late 2023"]
[White "Shtembuliak, Evgeny"]
[Black "Hnydiuk, Aleksander"]
[WhiteFideId "14113325"]
[BlackFideId "1109057"]
[WhiteElo "2817"]
[BlackElo "2532"]
[Result "0-1"]
[Round "6"]
[TimeControl "180+1"]
[Date "2023.08.08"]
[WhiteClock "0:00:04"]
[BlackClock "0:00:17"]
[Board "43"]

1. e4 {[%clk 0:03:00]}  e5 {[%clk 0:02:59]} 2. Nf3 {[%clk 0:03:00]}  Nc6 {[%clk 0:02:59]} 3. Bc4 {[%clk 0:03:01]}  Bc5 {[%clk 0:02:57]} 4. d4 {[%clk 0:02:44]}  exd4 {[%clk 0:02:57]} 5. Ng5 {[%clk 0:02:42]}  Nh6 {[%clk 0:02:54]} 6. Nxf7 {[%clk 0:02:42]}  Nxf7 {[%clk 0:02:54]} 7. Bxf7+ {[%clk 0:02:43]}  Kxf7 {[%clk 0:02:54]} 8. Qh5+ {[%clk 0:02:44]}  g6 {[%clk 0:02:38]} 9. Qxc5 {[%clk 0:02:44]}  d5 {[%clk 0:02:38]} 10. O-O {[%clk 0:02:43]}  dxe4 {[%clk 0:02:32]} 11. c3 {[%clk 0:02:44]}  Qd6 {[%clk 0:02:22]} 12. Qxd6 {[%clk 0:02:41]}  cxd6 {[%clk 0:02:22]} 13. cxd4 {[%clk 0:02:41]}  Nxd4 {[%clk 0:02:20]} 14. Nc3 {[%clk 0:02:41]}  Bf5 {[%clk 0:02:13]} 15. Bh6 {[%clk 0:02:09]}  Rhd8 {[%clk 0:02:07]} 16. Rad1 {[%clk 0:02:06]}  Ne6 {[%clk 0:02:02]} 17. h3 {[%clk 0:02:03]}  g5 {[%clk 0:02:01]} 18. g4 {[%clk 0:02:00]}  Bg6 {[%clk 0:02:01]} 19. Rfe1 {[%clk 0:01:50]}  Nf4 {[%clk 0:01:47]} 20. h4 {[%clk 0:01:34]}  Nd3 {[%clk 0:01:39]} 21. h5 {[%clk 0:01:28]}  Nxe1 {[%clk 0:01:36]} 22. Rxe1 {[%clk 0:01:29]}  d5 {[%clk 0:01:31]} 23. Bxg5 {[%clk 0:01:28]}  Rg8 {[%clk 0:01:22]} 24. hxg6+ {[%clk 0:01:22]}  Rxg6 {[%clk 0:01:23]} 25. f4 {[%clk 0:01:22]}  h6 {[%clk 0:01:18]} 26. Nxd5 {[%clk 0:01:20]}  hxg5 {[%clk 0:01:16]} 27. f5 {[%clk 0:01:21]}  Rd6 {[%clk 0:01:14]} 28. Nc3 {[%clk 0:01:21]}  Re8 {[%clk 0:01:09]} 29. Nxe4 {[%clk 0:01:17]}  Kg7 {[%clk 0:01:02]} 30. Kf2 {[%clk 0:01:10]}  Rd4 {[%clk 0:01:00]} 31. Kf3 {[%clk 0:01:10]}  Re5 {[%clk 0:00:53]} 32. Re2 {[%clk 0:01:06]}  Kf8 {[%clk 0:00:52]} 33. Re3 {[%clk 0:01:00]}  a5 {[%clk 0:00:50]} 34. b3 {[%clk 0:00:58]}  b5 {[%clk 0:00:49]} 35. Re2 {[%clk 0:00:53]}  a4 {[%clk 0:00:45]} 36. bxa4 {[%clk 0:00:48]}  Rxa4 {[%clk 0:00:46]} 37. Re3 {[%clk 0:00:27]}  Kg7 {[%clk 0:00:28]} 38. a3 {[%clk 0:00:26]}  Kf8 {[%clk 0:00:24]} 39. f6 {[%clk 0:00:19]}  Kg8 {[%clk 0:00:23]} 40. f7+ {[%clk 0:00:10]}  Kf8 {[%clk 0:00:23]} 41. Re2 {[%clk 0:00:04]}  Rxa3+ {[%clk 0:00:22]} 42. Kf2 {[%clk 0:00:04]}  Ra4 {[%clk 0:00:22]} 43. Kf3 {[%clk 0:00:05]}  Raxe4 {[%clk 0:00:16]} 44. Rxe4 {[%clk 0:00:05]}  Rxe4 {[%clk 0:00:16]} 45. Kxe4 {[%clk 0:00:05]}  Kxf7 {[%clk 0:00:16]} 46. Kd5 {[%clk 0:00:04]}  Kf6 {[%clk 0:00:17]} 0-1


[Site "https://www.chess.com"]

[Event "Titled Tuesday Blitz August 08 Late 2023"]
[White "reevecanada"]
[Black "Riehle, Marco"]
[BlackFideId "12904392"]
[WhiteElo "2532"]
[BlackElo "2797"]
[Result "1-0"]
[Round "6"]
[TimeControl "180+1"]
[Date "2023.08.08"]
[WhiteClock "0:01:42"]
[BlackClock "0:01:34"]
[Board "44"]

1. e4 {[%clk 0:02:59]}  e5 {[%clk 0:03:00]} 2. Nf3 {[%clk 0:02:58]}  Nc6 {[%clk 0:03:00]} 3. d4 {[%clk 0:02:59]}  exd4 {[%clk 0:03:00]} 4. Nxd4 {[%clk 0:02:59]}  Nf6 {[%clk 0:03:00]} 5. Nxc6 {[%clk 0:02:59]}  dxc6 {[%clk 0:03:00]} 6. Qxd8+ {[%clk 0:02:57]}  Kxd8 {[%clk 0:03:00]} 7. Nd2 {[%clk 0:02:55]}  Bc5 {[%clk 0:02:58]} 8. Be2 {[%clk 0:02:54]}  Ke7 {[%clk 0:02:56]} 9. O-O {[%clk 0:02:53]}  Rd8 {[%clk 0:02:55]} 10. e5 {[%clk 0:02:45]}  Ng4 {[%clk 0:02:54]} 11. Ne4 {[%clk 0:02:37]}  Bb6 {[%clk 0:02:49]} 12. Bxg4 {[%clk 0:02:33]}  Bxg4 {[%clk 0:02:49]} 13. Bg5+ {[%clk 0:02:33]}  f6 {[%clk 0:02:41]} 14. exf6+ {[%clk 0:02:32]}  Kf7 {[%clk 0:02:41]} 15. fxg7 {[%clk 0:02:31]}  Rd5 {[%clk 0:02:36]} 16. Bf6 {[%clk 0:02:22]}  Re8 {[%clk 0:02:28]} 17. Rfe1 {[%clk 0:02:18]}  Rg8 {[%clk 0:02:07]} 18. h4 {[%clk 0:02:11]}  h6 {[%clk 0:01:59]} 19. c4 {[%clk 0:02:06]}  Rf5 {[%clk 0:01:56]} 20. Bc3 {[%clk 0:02:04]}  a5 {[%clk 0:01:44]} 21. Kh2 {[%clk 0:01:50]}  Bxf2 {[%clk 0:01:38]} 22. Nxf2 {[%clk 0:01:47]}  Rxf2 {[%clk 0:01:39]} 23. Kg3 {[%clk 0:01:47]}  Rc2 {[%clk 0:01:39]} 24. Kxg4 {[%clk 0:01:46]}  Rxg2+ {[%clk 0:01:40]} 25. Kh3 {[%clk 0:01:46]}  Rc2 {[%clk 0:01:39]} 26. h5 {[%clk 0:01:43]}  Rxc3+ {[%clk 0:01:38]} 27. bxc3 {[%clk 0:01:43]}  Rxg7 {[%clk 0:01:39]} 28. Re3 {[%clk 0:01:42]}  Rg5 {[%clk 0:01:39]} 29. Rf1+ {[%clk 0:01:42]}  Kg8 {[%clk 0:01:34]} 30. Rg3 {[%clk 0:01:42]} 1-0


[Site "https://www.chess.com"]

[Event "Titled Tuesday Blitz August 08 Late 2023"]
[White "Do Valle Cardoso, Lucas"]
[Black "Hansen, Torbjorn Ringdal"]
[WhiteFideId "2163144"]
[BlackFideId "1501720"]
[WhiteElo "2726"]
[BlackElo "2522"]
[Result "1-0"]
[Round "6"]
[TimeControl "180+1"]
[Date "2023.08.08"]
[WhiteClock "0:00:09"]
[BlackClock "0:00:00"]
[Board "48"]

1. e4 {[%clk 0:03:00]}  e5 {[%clk 0:02:59]} 2. Nf3 {[%clk 0:03:00]}  Nc6 {[%clk 0:02:59]} 3. d4 {[%clk 0:03:01]}  exd4 {[%clk 0:02:58]} 4. Bc4 {[%clk 0:03:01]}  Nf6 {[%clk 0:02:56]} 5. e5 {[%clk 0:03:02]}  d5 {[%clk 0:02:52]} 6. Bb5 {[%clk 0:03:02]}  Ne4 {[%clk 0:02:52]} 7. Nxd4 {[%clk 0:03:02]}  a6 {[%clk 0:02:52]} 8. Nxc6 {[%clk 0:02:44]}  Qh4 {[%clk 0:02:50]} 9. g3 {[%clk 0:02:01]}  Nxg3 {[%clk 0:02:47]} 10. Qxd5 {[%clk 0:01:51]}  Nxh1 {[%clk 0:02:44]} 11. Be3 {[%clk 0:01:40]}  axb5 {[%clk 0:02:37]} 12. Nc3 {[%clk 0:01:41]}  Bd7 {[%clk 0:01:46]} 13. Nd4 {[%clk 0:01:20]}  c6 {[%clk 0:01:25]} 14. Qxh1 {[%clk 0:01:19]}  Bb4 {[%clk 0:01:24]} 15. O-O-O {[%clk 0:01:11]}  Bxc3 {[%clk 0:01:22]} 16. bxc3 {[%clk 0:01:12]}  O-O {[%clk 0:01:20]} 17. Kb2 {[%clk 0:01:09]}  Be6 {[%clk 0:01:16]} 18. a3 {[%clk 0:01:09]}  Qe7 {[%clk 0:01:11]} 19. Ra1 {[%clk 0:01:08]}  Bd5 {[%clk 0:01:10]} 20. Qg1 {[%clk 0:01:04]}  Qxe5 {[%clk 0:01:09]} 21. Nxc6 {[%clk 0:00:50]}  bxc6 {[%clk 0:00:28]} 22. Bd4 {[%clk 0:00:49]}  Qxd4 {[%clk 0:00:26]} 23. cxd4 {[%clk 0:00:50]}  Rfe8 {[%clk 0:00:27]} 24. Re1 {[%clk 0:00:50]}  g6 {[%clk 0:00:24]} 25. h4 {[%clk 0:00:46]}  h5 {[%clk 0:00:23]} 26. Re5 {[%clk 0:00:43]}  Rxe5 {[%clk 0:00:21]} 27. dxe5 {[%clk 0:00:43]}  Ra4 {[%clk 0:00:21]} 28. Qg5 {[%clk 0:00:41]}  Rc4 {[%clk 0:00:20]} 29. f4 {[%clk 0:00:39]}  Be6 {[%clk 0:00:20]} 30. Qf6 {[%clk 0:00:30]}  Bf5 {[%clk 0:00:18]} 31. c3 {[%clk 0:00:31]}  Be6 {[%clk 0:00:15]} 32. Qd8+ {[%clk 0:00:27]}  Kh7 {[%clk 0:00:15]} 33. Qd2 {[%clk 0:00:27]}  Kg8 {[%clk 0:00:15]} 34. Qe3 {[%clk 0:00:24]}  Kh7 {[%clk 0:00:14]} 35. Kc1 {[%clk 0:00:24]}  Kg8 {[%clk 0:00:15]} 36. Kd2 {[%clk 0:00:25]}  Kh7 {[%clk 0:00:15]} 37. Ke1 {[%clk 0:00:25]}  Kg8 {[%clk 0:00:15]} 38. Kf2 {[%clk 0:00:26]}  Kh7 {[%clk 0:00:15]} 39. Kg3 {[%clk 0:00:26]}  Kg8 {[%clk 0:00:15]} 40. Kf2 {[%clk 0:00:22]}  Bd5 {[%clk 0:00:14]} 41. Qd2 {[%clk 0:00:18]}  Kh7 {[%clk 0:00:12]} 42. Ke1 {[%clk 0:00:17]}  Ra4 {[%clk 0:00:11]} 43. f5 {[%clk 0:00:14]}  Re4+ {[%clk 0:00:05]} 44. Kd1 {[%clk 0:00:10]}  Rxe5 {[%clk 0:00:06]} 45. fxg6+ {[%clk 0:00:10]}  fxg6 {[%clk 0:00:07]} 46. Qf4 {[%clk 0:00:10]}  Rf5 {[%clk 0:00:06]} 47. Qc7+ {[%clk 0:00:09]}  Kh6 {[%clk 0:00:07]} 48. Qd8 {[%clk 0:00:09]}  Kg7 {[%clk 0:00:04]} 49. Qe7+ {[%clk 0:00:08]}  Rf7 {[%clk 0:00:04]} 50. Qe5+ {[%clk 0:00:09]}  Kg8 {[%clk 0:00:04]} 51. Kd2 {[%clk 0:00:08]}  Rf5 {[%clk 0:00:03]} 52. Qe8+ {[%clk 0:00:07]}  Kg7 {[%clk 0:00:03]} 53. Qe7+ {[%clk 0:00:08]}  Kg8 {[%clk 0:00:03]} 54. Qe8+ {[%clk 0:00:08]}  Kg7 {[%clk 0:00:04]} 55. Qd7+ {[%clk 0:00:09]}  Kg8 {[%clk 0:00:02]} 56. Qd8+ {[%clk 0:00:09]}  Kf7 {[%clk 0:00:00]} 57. Ke3 {[%clk 0:00:09]} 1-0


[Site "https://www.chess.com"]

[Event "Titled Tuesday Blitz August 08 Late 2023"]
[White "chess123456s"]
[Black "Korchmar, Vasiliy"]
[BlackFideId "24131750"]
[WhiteElo "2520"]
[BlackElo "2719"]
[Result "0-1"]
[Round "6"]
[TimeControl "180+1"]
[Date "2023.08.08"]
[WhiteClock "0:00:10"]
[BlackClock "0:00:05"]
[Board "50"]

1. d4 {[%clk 0:03:00]}  d5 {[%clk 0:01:30]} 2. c4 {[%clk 0:02:59]}  c6 {[%clk 0:01:30]} 3. Nf3 {[%clk 0:02:58]}  Nf6 {[%clk 0:01:30]} 4. Nc3 {[%clk 0:02:57]}  e6 {[%clk 0:01:30]} 5. e3 {[%clk 0:02:57]}  Nbd7 {[%clk 0:01:30]} 6. Qc2 {[%clk 0:02:56]}  Bd6 {[%clk 0:01:30]} 7. b3 {[%clk 0:02:56]}  O-O {[%clk 0:01:29]} 8. Bd3 {[%clk 0:02:56]}  b6 {[%clk 0:01:28]} 9. O-O {[%clk 0:02:56]}  Bb7 {[%clk 0:01:28]} 10. Bb2 {[%clk 0:02:56]}  Rc8 {[%clk 0:01:27]} 11. e4 {[%clk 0:02:53]}  dxc4 {[%clk 0:01:26]} 12. bxc4 {[%clk 0:02:49]}  e5 {[%clk 0:01:27]} 13. d5 {[%clk 0:02:45]}  Nc5 {[%clk 0:01:26]} 14. Rac1 {[%clk 0:02:38]}  Qe7 {[%clk 0:01:25]} 15. Rfd1 {[%clk 0:02:38]}  Nxd3 {[%clk 0:01:21]} 16. Qxd3 {[%clk 0:02:36]}  cxd5 {[%clk 0:01:21]} 17. Nxd5 {[%clk 0:02:33]}  Bxd5 {[%clk 0:01:12]} 18. cxd5 {[%clk 0:02:30]}  Nd7 {[%clk 0:01:11]} 19. Qe3 {[%clk 0:02:17]}  Bc5 {[%clk 0:01:07]} 20. Qe2 {[%clk 0:02:14]}  Qd6 {[%clk 0:01:00]} 21. Nh4 {[%clk 0:02:11]}  g6 {[%clk 0:00:58]} 22. Nf3 {[%clk 0:02:04]}  Rfe8 {[%clk 0:00:57]} 23. Nd2 {[%clk 0:02:04]}  Qf6 {[%clk 0:00:48]} 24. Nc4 {[%clk 0:02:02]}  Rc7 {[%clk 0:00:44]} 25. Ne3 {[%clk 0:01:54]}  Rec8 {[%clk 0:00:42]} 26. d6 {[%clk 0:01:53]}  Rc6 {[%clk 0:00:38]} 27. Nd5 {[%clk 0:01:38]}  Qxd6 {[%clk 0:00:39]} 28. Nb4 {[%clk 0:01:31]}  Bxf2+ {[%clk 0:00:26]} 29. Kxf2 {[%clk 0:01:05]}  Qxb4 {[%clk 0:00:26]} 30. Rxc6 {[%clk 0:01:03]}  Rxc6 {[%clk 0:00:27]} 31. Rxd7 {[%clk 0:01:03]}  Qc5+ {[%clk 0:00:27]} 32. Kg3 {[%clk 0:00:57]}  Rf6 {[%clk 0:00:22]} 33. Rd5 {[%clk 0:00:51]}  Qe7 {[%clk 0:00:16]} 34. Bxe5 {[%clk 0:00:46]}  Re6 {[%clk 0:00:14]} 35. Qb2 {[%clk 0:00:39]}  f6 {[%clk 0:00:14]} 36. Bf4 {[%clk 0:00:31]}  Rxe4 {[%clk 0:00:13]} 37. Rd4 {[%clk 0:00:25]}  Re2 {[%clk 0:00:10]} 38. Qb3+ {[%clk 0:00:24]}  Kg7 {[%clk 0:00:09]} 39. Qd3 {[%clk 0:00:22]}  g5 {[%clk 0:00:01]} 40. Rd7 {[%clk 0:00:22]}  gxf4+ {[%clk 0:00:02]} 41. Kxf4 {[%clk 0:00:22]}  Re4+ {[%clk 0:00:02]} 42. Kf5 {[%clk 0:00:18]}  Re5+ {[%clk 0:00:02]} 43. Kf4 {[%clk 0:00:17]}  Re4+ {[%clk 0:00:03]} 44. Kf3 {[%clk 0:00:12]}  Re3+ {[%clk 0:00:03]} 45. Qxe3 {[%clk 0:00:12]}  Qxd7 {[%clk 0:00:03]} 46. h3 {[%clk 0:00:11]}  Qd5+ {[%clk 0:00:03]} 47. Kg3 {[%clk 0:00:11]}  Qxa2 {[%clk 0:00:04]} 48. Qe7+ {[%clk 0:00:11]}  Qf7 {[%clk 0:00:05]} 49. Qb4 {[%clk 0:00:10]}  Qc7+ {[%clk 0:00:04]} 50. Kf2 {[%clk 0:00:10]}  Qc5+ {[%clk 0:00:04]} 51. Qxc5 {[%clk 0:00:10]}  bxc5 {[%clk 0:00:05]} 0-1


[Site "https://www.chess.com"]

[Event "Titled Tuesday Blitz August 08 Late 2023"]
[White "Domingo Nunez, Alejandro"]
[Black "carokannlover213"]
[WhiteFideId "22245561"]
[WhiteElo "2519"]
[BlackElo "2719"]
[Result "0-1"]
[Round "6"]
[TimeControl "180+1"]
[Date "2023.08.08"]
[WhiteClock "0:00:06"]
[BlackClock "0:00:07"]
[Board "51"]

1. Nf3 {[%clk 0:03:00]}  Nf6 {[%clk 0:02:59]} 2. g3 {[%clk 0:03:00]}  c5 {[%clk 0:02:59]} 3. Bg2 {[%clk 0:03:00]}  d5 {[%clk 0:02:58]} 4. O-O {[%clk 0:03:00]}  Nc6 {[%clk 0:02:58]} 5. d4 {[%clk 0:03:00]}  e6 {[%clk 0:02:58]} 6. c4 {[%clk 0:03:00]}  Be7 {[%clk 0:02:53]} 7. cxd5 {[%clk 0:02:56]}  exd5 {[%clk 0:02:50]} 8. dxc5 {[%clk 0:02:54]}  Bxc5 {[%clk 0:02:49]} 9. Nc3 {[%clk 0:02:52]}  h6 {[%clk 0:02:44]} 10. Bf4 {[%clk 0:02:46]}  O-O {[%clk 0:02:39]} 11. Rc1 {[%clk 0:02:46]}  Bb6 {[%clk 0:02:34]} 12. Na4 {[%clk 0:02:28]}  Bc7 {[%clk 0:02:24]} 13. Bxc7 {[%clk 0:02:26]}  Qxc7 {[%clk 0:02:25]} 14. Qb3 {[%clk 0:02:18]}  Qe7 {[%clk 0:02:16]} 15. Nc5 {[%clk 0:02:01]}  Rb8 {[%clk 0:02:08]} 16. Rfe1 {[%clk 0:01:38]}  Bg4 {[%clk 0:02:04]} 17. Qa4 {[%clk 0:01:26]}  Rfc8 {[%clk 0:01:52]} 18. Nd4 {[%clk 0:01:11]}  a6 {[%clk 0:01:36]} 19. Nd3 {[%clk 0:00:57]}  Bd7 {[%clk 0:01:33]} 20. Nxc6 {[%clk 0:00:53]}  Bxc6 {[%clk 0:01:31]} 21. Qd4 {[%clk 0:00:53]}  Bb5 {[%clk 0:01:28]} 22. Nf4 {[%clk 0:00:41]}  Rxc1 {[%clk 0:00:55]} 23. Rxc1 {[%clk 0:00:42]}  Rd8 {[%clk 0:00:55]} 24. e3 {[%clk 0:00:31]}  Bc6 {[%clk 0:00:54]} 25. Rd1 {[%clk 0:00:22]}  Rd7 {[%clk 0:00:44]} 26. Bh3 {[%clk 0:00:21]}  Rd6 {[%clk 0:00:43]} 27. Bg2 {[%clk 0:00:19]}  Rd8 {[%clk 0:00:43]} 28. e4 {[%clk 0:00:15]}  Qe8 {[%clk 0:00:22]} 29. exd5 {[%clk 0:00:15]}  Ba4 {[%clk 0:00:22]} 30. b3 {[%clk 0:00:15]}  Bd7 {[%clk 0:00:22]} 31. h3 {[%clk 0:00:10]}  Qf8 {[%clk 0:00:19]} 32. d6 {[%clk 0:00:09]}  b5 {[%clk 0:00:19]} 33. Qb6 {[%clk 0:00:08]}  Bc8 {[%clk 0:00:14]} 34. Qc7 {[%clk 0:00:05]}  Nd7 {[%clk 0:00:12]} 35. Nd5 {[%clk 0:00:04]}  Kh8 {[%clk 0:00:10]} 36. Ne7 {[%clk 0:00:04]}  Nf6 {[%clk 0:00:07]} 37. Rc1 {[%clk 0:00:03]}  Be6 {[%clk 0:00:07]} 38. Bc6 {[%clk 0:00:03]}  Bd7 {[%clk 0:00:05]} 39. Bb7 {[%clk 0:00:03]}  Be6 {[%clk 0:00:05]} 40. Nc6 {[%clk 0:00:03]}  Rd7 {[%clk 0:00:04]} 41. Qb8 {[%clk 0:00:03]}  Qxb8 {[%clk 0:00:04]} 42. Nxb8 {[%clk 0:00:04]}  Rxb7 {[%clk 0:00:04]} 43. Nxa6 {[%clk 0:00:04]}  Rd7 {[%clk 0:00:04]} 44. Rd1 {[%clk 0:00:03]}  Ne8 {[%clk 0:00:04]} 45. Nc5 {[%clk 0:00:03]}  Rxd6 {[%clk 0:00:04]} 46. Re1 {[%clk 0:00:03]}  Rc6 {[%clk 0:00:04]} 47. Ne4 {[%clk 0:00:04]}  Nf6 {[%clk 0:00:04]} 48. Nd2 {[%clk 0:00:04]}  Kh7 {[%clk 0:00:04]} 49. Nf3 {[%clk 0:00:04]}  b4 {[%clk 0:00:04]} 50. Nd4 {[%clk 0:00:05]}  Ra6 {[%clk 0:00:05]} 51. Re2 {[%clk 0:00:05]}  Bd5 {[%clk 0:00:05]} 52. Rd2 {[%clk 0:00:05]}  Ra8 {[%clk 0:00:06]} 53. Nb5 {[%clk 0:00:05]}  Rc8 {[%clk 0:00:06]} 54. Nd6 {[%clk 0:00:05]}  Rc1+ {[%clk 0:00:06]} 55. Kh2 {[%clk 0:00:06]}  Rh1# {[%clk 0:00:07]} 0-1


[Site "https://www.chess.com"]

[Event "Titled Tuesday Blitz August 08 Late 2023"]
[White "Ansh M Shah"]
[Black "Papasimakopoulos, Alexandros"]
[WhiteFideId "25033379"]
[BlackFideId "4244125"]
[WhiteElo "2518"]
[BlackElo "2704"]
[Result "1-0"]
[Round "6"]
[TimeControl "180+1"]
[Date "2023.08.08"]
[WhiteClock "0:00:19"]
[BlackClock "0:01:37"]
[Board "53"]

1. d4 {[%clk 0:03:00]}  e6 {[%clk 0:02:59]} 2. c4 {[%clk 0:03:01]}  Nf6 {[%clk 0:02:58]} 3. g3 {[%clk 0:03:02]}  c5 {[%clk 0:02:57]} 4. Nf3 {[%clk 0:03:00]}  cxd4 {[%clk 0:02:55]} 5. Nxd4 {[%clk 0:03:01]}  Bb4+ {[%clk 0:02:55]} 6. Bd2 {[%clk 0:03:01]}  Bxd2+ {[%clk 0:02:55]} 7. Qxd2 {[%clk 0:03:02]}  d5 {[%clk 0:02:56]} 8. cxd5 {[%clk 0:02:59]}  Qxd5 {[%clk 0:02:57]} 9. Nf3 {[%clk 0:02:58]}  Nc6 {[%clk 0:02:55]} 10. Bg2 {[%clk 0:02:58]}  O-O {[%clk 0:02:54]} 11. Nc3 {[%clk 0:02:55]}  Qh5 {[%clk 0:02:52]} 12. O-O {[%clk 0:02:54]}  e5 {[%clk 0:02:52]} 13. Qg5 {[%clk 0:02:53]}  Be6 {[%clk 0:02:42]} 14. Qxh5 {[%clk 0:02:50]}  Nxh5 {[%clk 0:02:43]} 15. Ng5 {[%clk 0:02:43]}  Bd7 {[%clk 0:02:42]} 16. Nge4 {[%clk 0:02:43]}  Rad8 {[%clk 0:02:39]} 17. Rfd1 {[%clk 0:02:42]}  Nf6 {[%clk 0:02:32]} 18. Nxf6+ {[%clk 0:02:39]}  gxf6 {[%clk 0:02:33]} 19. Rd2 {[%clk 0:02:32]}  Be6 {[%clk 0:02:32]} 20. Rad1 {[%clk 0:02:32]}  Rxd2 {[%clk 0:02:32]} 21. Rxd2 {[%clk 0:02:33]}  Rc8 {[%clk 0:02:31]} 22. a3 {[%clk 0:02:28]}  Kf8 {[%clk 0:02:29]} 23. e3 {[%clk 0:02:20]}  Ke7 {[%clk 0:02:29]} 24. Bd5 {[%clk 0:02:18]}  Rd8 {[%clk 0:02:25]} 25. Kf1 {[%clk 0:02:14]}  f5 {[%clk 0:02:16]} 26. Ke2 {[%clk 0:02:08]}  Rc8 {[%clk 0:02:17]} 27. Bxe6 {[%clk 0:01:51]}  fxe6 {[%clk 0:02:16]} 28. Rc2 {[%clk 0:01:43]}  e4 {[%clk 0:02:15]} 29. Kd2 {[%clk 0:01:26]}  Rd8+ {[%clk 0:02:13]} 30. Ke2 {[%clk 0:01:26]}  Ne5 {[%clk 0:02:14]} 31. Nb5 {[%clk 0:01:22]}  a6 {[%clk 0:02:04]} 32. Rc7+ {[%clk 0:01:14]}  Kf6 {[%clk 0:02:04]} 33. Nd4 {[%clk 0:01:14]}  b5 {[%clk 0:02:03]} 34. Rxh7 {[%clk 0:01:02]}  Nf3 {[%clk 0:01:59]} 35. Nxf3 {[%clk 0:00:37]}  exf3+ {[%clk 0:02:00]} 36. Kxf3 {[%clk 0:00:37]}  Rd2 {[%clk 0:02:00]} 37. Ra7 {[%clk 0:00:37]}  Rd6 {[%clk 0:01:56]} 38. h4 {[%clk 0:00:28]}  e5 {[%clk 0:01:55]} 39. Ke2 {[%clk 0:00:28]}  e4 {[%clk 0:01:55]} 40. f3 {[%clk 0:00:27]}  exf3+ {[%clk 0:01:47]} 41. Kxf3 {[%clk 0:00:28]}  Re6 {[%clk 0:01:46]} 42. b3 {[%clk 0:00:26]}  Kg6 {[%clk 0:01:45]} 43. a4 {[%clk 0:00:24]}  bxa4 {[%clk 0:01:46]} 44. bxa4 {[%clk 0:00:25]}  Kf6 {[%clk 0:01:46]} 45. a5 {[%clk 0:00:24]}  Kg6 {[%clk 0:01:44]} 46. Rb7 {[%clk 0:00:22]}  Re5 {[%clk 0:01:43]} 47. Rb6+ {[%clk 0:00:22]}  Kh5 {[%clk 0:01:44]} 48. Rxa6 {[%clk 0:00:23]}  Rb5 {[%clk 0:01:44]} 49. Ra8 {[%clk 0:00:21]}  Rb1 {[%clk 0:01:41]} 50. a6 {[%clk 0:00:19]}  Rf1+ {[%clk 0:01:41]} 51. Kg2 {[%clk 0:00:19]}  Ra1 {[%clk 0:01:37]} 52. a7 {[%clk 0:00:19]} 1-0


[Site "https://www.chess.com"]